Cogmind - Beta 15 @@@ ROGUE MODE // 2025.08.03 @ 02:54:10 Player: Naughtyusername Result: Destroyed by B-75 Beast with Magnetic Acceleration Cannon Performance ------------- Evolutions (4) 2000 Regions Visited (7) 1400 Robots Destroyed (46) 230 Value Destroyed (1004) 1004 Prototype IDs (10) 200 Alien Tech Used (0) 0 Bonus (654) 654 TOTAL SCORE: 5488 Bonus ------- Follower Combat Kills 354 Registered with UFD 300 Cogmind --------- Core Integrity 0/850 Matter 300/300 Energy 100/100 System Corruption 10% Temperature Cool (12) Movement Core (50) Location -6/Extension Parts ------- > --- POWER (2) -------- (None) > --- PROPULSION (4) --- (None) > --- UTILITY (5) ------ Improved Signal Interpreter > --- WEAPON (4) ------- (None) > --- INVENTORY (5) ---- High-capacity Storage Unit Bore Cannon Grenade Launcher Peak State ------------ > --- POWER ------------ (None) > --- PROPULSION ------- Gravmag Array Nuclear Pulse Thruster > --- UTILITY ---------- Advanced Sensor Array Improved Signal Interpreter Improved Heavy Armor Plating > --- WEAPON ----------- Heavy Laser Flak Gun > --- INVENTORY -------- VSS Leg High-capacity Storage Unit Grenade Launcher [Rating: 41] Favorites ----------- Power Light Ion Engine Engine Light Ion Engine Power Core Fission Core Propulsion Light Treads Treads Light Treads Leg VSS Leg Hover Unit Gravmag Array Flight Unit Nuclear Pulse Thruster Utility Seismic Detector Device Seismic Detector Storage High-capacity Storage Unit Processor Advanced Targeting Computer Protection Improved Light Armor Plating Weapon Barrage Gun Energy Gun Heavy Laser Ballistic Gun Barrage Gun Ballistic Cannon Improved Light Cannon Launcher Grenade Launcher Special Weapon Junk Cannon Build | -11 -10 -10 -8 -6 -6 -6 -6 ------- Run | Yrd Mat Sub Scr Fac Was Fac Ext Slots Evolved 8 | . . . . 8 . . . Power 1 | . . . . 1 . . . Propulsion 2 | . . . . 2 . . . Utility 3 | . . . . 3 . . . Weapon 2 | . . . . 2 . . . Parts Attached 44 | 4 8 1 6 10 2 3 10 Power 4 | . 2 . 1 . . . 1 Engine 3 | . 2 . 1 . . . . Core 1 | . . . . . . . 1 Reactor . | . . . . . . . . Propulsion 12 | 2 . . 1 2 1 2 4 Treads 8 | 2 . . 1 2 1 . 2 Leg 2 | . . . . . . . 2 Wheel . | . . . . . . . . Hover 1 | . . . . . . 1 . Flight 1 | . . . . . . 1 . Utility 10 | 1 2 . . 4 . 1 2 Device 4 | 1 1 . . 1 . . 1 Storage 1 | . 1 . . . . . . Processor 2 | . . . . 1 . 1 . Hackware . | . . . . . . . . Protection 3 | . . . . 2 . . 1 Artifact . | . . . . . . . . Weapon 18 | 1 4 1 4 4 1 . 3 Energy Gun 1 | . . . . . . . 1 Energy Cannon . | . . . . . . . . Ballistic Gun 9 | 1 3 1 3 . . . 1 Ballistic Cannon 6 | . . . . 4 1 . 1 Launcher 1 | . 1 . . . . . . Special Weapon 1 | . . . 1 . . . . Impact Weapon . | . . . . . . . . Slashing Weapon . | . . . . . . . . Piercing Weapon . | . . . . . . . . Special Melee Weapon . | . . . . . . . . Unidentified Prototypes 1 | . . . 1 . . . . Parts Lost 23 | . 1 . . 6 5 . 11 Power 3 | . 1 . . . 1 . 1 Propulsion 10 | . . . . 2 2 . 6 Utility 3 | . . . . 1 . . 2 Weapon 7 | . . . . 3 2 . 2 Highest Loss Streak 6 | . 1 . . 3 5 . 6 To Critical Strikes . | . . . . . . . . Average Backups 15 | 1 13 20 18 10 6 3 3 Power 1 | 1 1 2 1 1 1 . . Propulsion 1 | . . 2 2 . . . . Utility 3 | . 2 3 3 2 1 1 1 Weapon 9 | . 8 13 11 5 2 1 1 Tool/Special . | . . . . . . . . Unused Backups 32 | 6 6 . 15 . 4 . 1 Power 5 | . . . 3 . 2 . . Propulsion 5 | 4 . . 1 . . . . Utility 8 | . 2 . 5 . . . 1 Weapon 13 | 2 4 . 6 . 1 . . Tool/Special 1 | . . . . . 1 . . Average Slot Usage (%) 92 | . 100 100 98 81 49 12 29 Engine 12 | . 14 14 14 6 3 . . Treads 26 | . 28 28 28 25 11 . 2 Device 12 | . 14 14 14 8 4 . 4 Storage 12 | . 14 14 14 6 4 . . Ballistic Gun 23 | . 27 28 26 5 . . 2 Ballistic Cannon 1 | . . . . 17 16 . . Peak Build Rating 41 | 7 11 12 26 37 32 19 41 Average Rating 15 | 6 8 10 16 32 20 13 22 On Entrance 12 | 6 7 10 12 21 26 2 19 Naked Turns 53 | . . . . . 28 25 . Heaviest Build 79 | 13 50 50 64 79 69 . 24 Greatest Support 80 | 40 40 40 40 80 70 6 37 Greatest Overweight (x) 7 | . 1 1 1 1 . . 7 Average Overweight (x) . | . . 1 1 . . . . Largest Inventory Capacity 20 | 8 20 20 20 20 20 5 5 Average Capacity 18 | 8 19 20 20 20 14 5 5 Most Carried 20 | 8 20 20 20 19 10 5 5 Average Carried 16 | 1 13 20 19 12 7 4 3 Final Capacity 20 | 8 20 20 20 20 5 5 5 Final Carried 20 | 2 20 20 20 11 5 5 3 Class Distribution -------------------- 78% | Mutant 17% | Derelict-Mutant 4% | Derelict-Gunner Dominant Class ---------------- Mutant | -10/Materials Mutant | -10/Subcaves Mutant | -8/Scraptown Derelict-Gunner | -6/Factory Derelict-Gunner | -6/Waste Mutant | -6/Factory Mutant | -6/Extension Resources | -11 -10 -10 -8 -6 -6 -6 -6 ----------- Run | Yrd Mat Sub Scr Fac Was Fac Ext Matter Collected 1651 | 390 424 . 40 438 171 . 188 Remotely . | . . . . . . . . Salvage Created 1481 | 277 657 . . 297 187 . 63 Parts 81 | 23 36 . . 17 . . 5 Haulers Intercepted 2 | . 2 . . . . . . Recyclers Shooed 2 | . 1 . . 1 . . . Parts Field Recycled . | . . . . . . . . Retrieved Matter . | . . . . . . . . Parts Self-Destructed 10 | . . 10 . . . . . Prevented . | . . . . . . . . Kills | -11 -10 -10 -8 -6 -6 -6 -6 ------- Run | Yrd Mat Sub Scr Fac Was Fac Ext Combat Hostiles Destroyed 27 | . 16 . . 9 1 . 1 Guns 15 | . 13 . . 2 . . . Cannons 8 | . . . . 7 1 . . AOE 4 | . 3 . . . . . 1 Classes Destroyed 10 | 3 4 . . 1 1 . 1 Worker 3 | 2 1 . . . . . . Builder 1 | . . . . . . . 1 Tunneler 8 | 8 . . . . . . . Hauler 2 | . 2 . . . . . . Recycler 3 | 1 2 . . . . . . Watcher 2 | . 1 . . . . . 1 Swarmer 10 | . 9 . . 1 . . . Grunt 14 | . 7 . . 6 . . 1 Hunter 2 | . . . . 2 . . . Compactor 1 | . . . . . 1 . . Best Kill Streak 7 | 3 7 . . 3 1 . 2 Combat Bots Only 5 | . 5 . . 3 1 . 1 Max Kills in Single Turn 2 | 1 2 . . 1 1 . 2 Gunslinging . | . . . . . . . . Exploded 2 | . 2 . . . . . 1 Melee . | . . . . . . . . Uniques/NPCs Destroyed . | . . . . . . . . Combat | -11 -10 -10 -8 -6 -6 -6 -6 -------- Run | Yrd Mat Sub Scr Fac Was Fac Ext Hostile Shots Fired 486 | . 58 . . 125 5 15 283 Missed 172 | . 19 . . 25 . 12 116 Hits 314 | . 39 . . 100 5 3 167 Melee 5 | . . . . . 5 . . Projectile 309 | . 39 . . 100 . 3 167 AOE 2 | . . . . 2 . . . Critical Strikes 9 | . . . . 3 4 . 2 Damage Taken 4628 | . 395 88 . 1884 265 17 1979 Core 959 | . 41 66 . 229 166 11 446 Absorbed by Shields 34 | . . . . . . . 34 Regen/Repaired (Parts) 20 | . . . . 20 . . . Core Remaining (%) 78 | 100 . . 57 . . . . Volleys Fired 123 | 25 57 . . 25 10 . 6 Largest 4 | 2 2 . . 4 4 . 2 Hottest 132 | 40 43 . . 127 132 . 97 Shots Fired 288 | 50 111 . . 85 34 . 8 Gun 191 | 50 108 . . 29 . . 4 Cannon 90 | . . . . 56 34 . . Launcher 7 | . 3 . . . . . 4 Special . | . . . . . . . . Kinetic 279 | 50 108 . . 85 34 . 2 Thermal 2 | . . . . . . . 2 Explosive 7 | . 3 . . . . . 4 Electromagnetic . | . . . . . . . . Robot Hit Streak 24 | 9 9 . . 8 22 . 24 Robot Miss Streak 3 | 1 3 . . 3 1 . 3 Penetration Max . | . . . . . . . . Secondary Targets 1 | . 1 . . . . . . Max Gunslinging Chain 1 | . 1 . . . . . . Shots Hit Robots 188 | 34 67 . . 53 29 . 5 Core Hits 98 | 12 34 . . 28 4 . 20 Critical Kills . | . . . . . . . . Critical Parts Destroyed . | . . . . . . . . Critical Strikes 2 | . . . . 1 1 . . Blast 2 | . . . . 1 1 . . Melee Attacks . | . . . . . . . . Impact . | . . . . . . . . Slashing . | . . . . . . . . Piercing . | . . . . . . . . Sneak Attacks . | . . . . . . . . Combat Hostiles . | . . . . . . . . Follow-up Attacks . | . . . . . . . . Damage Inflicted 3552 | 432 1008 . . 990 675 . 447 Guns 1669 | 432 830 . . 316 . . 91 Cannons 1316 | . . . . 641 675 . . Explosions 509 | . 174 . . . . . 335 Melee . | . . . . . . . . Ramming 58 | . 4 . . 33 . . 21 Kinetic 2949 | 432 830 . . 957 675 . 55 Thermal 36 | . . . . . . . 36 Explosive 509 | . 174 . . . . . 335 Electromagnetic . | . . . . . . . . Impact . | . . . . . . . . Slashing . | . . . . . . . . Piercing . | . . . . . . . . Highest Corruption 10 | . . . . . 10 10 10 Average Corruption 10 | . . . . . 10 10 10 Corruption Purged . | . . . . . . . . Corruption Blocked . | . . . . . . . . Effects 22 | . . . . . 5 6 11 Message Errors 6 | . . . . . . 3 3 Matter Fused 4 | . . . . . 1 1 2 Energy Discharges 5 | . . . . . 1 1 3 Data Loss (minor) 4 | . . . . . 1 1 2 Misfires 1 | . . . . . 1 . . Misdirections 1 | . . . . . . . 1 Weapon Failures 1 | . . . . . 1 . . Overload Shots . | . . . . . . . . Overflow Damage 1 | . . . . . . . 1 Projectiles . | . . . . . . . . Explosions 1 | . . . . . . . 1 Melee . | . . . . . . . . Knockbacks 10 | . . . . 10 . . . Impact . | . . . . . . . . Kinetic 10 | . . . . 10 . . . Secondary . | . . . . . . . . Self-Inflicted Damage 46 | . . . . . . . 46 Shots 2 | . . . . . . . 2 Rammed 15 | . 2 . . 5 . . 8 Targets Rammed 15 | . 2 . . 5 . . 8 Kicked . | . . . . . . . . Crushed . | . . . . . . . . Highest Temperature 364 | . . . . 364 200 . 36 Average Temperature 107 | . . . . 110 120 . 16 Received Heat Transfer 849 | . 84 . . 243 . . 522 Siege Activations . | . . . . . . . . Martial Activations . | . . . . . . . . Shielding Activations . | . . . . . . . . Robots Disrupted . | . . . . . . . . Combat Hostiles . | . . . . . . . . Robots Corrupted . | . . . . . . . . Combat Hostiles . | . . . . . . . . Parts Fried . | . . . . . . . . Impact Corruptions . | . . . . . . . . Robots Melted . | . . . . . . . . Combat Hostiles . | . . . . . . . . Parts Melted . | . . . . . . . . Heat Transferred 74 | . . . . . . . 74 Parts Sabotaged . | . . . . . . . . Parts Stolen . | . . . . . . . . Parts Stripped . | . . . . . . . . Power Chain Reactions . | . . . . . . . . Alert | -11 -10 -10 -8 -6 -6 -6 -6 ------- Run | Yrd Mat Sub Scr Fac Was Fac Ext Maximum Alert Level 1 | . . . . 1 . . . Low Security (%) 95 | 100 100 . . 65 100 100 100 Level 1 4 | . . . . 34 . . . Level 2 . | . . . . . . . . Level 3 . | . . . . . . . . Level 4 . | . . . . . . . . Level 5 . | . . . . . . . . High Security . | . . . . . . . . Max Security . | . . . . . . . . Peak Influence 248 | 10 159 . . 248 51 30 181 Initial 51 | . . . . . 51 . 29 Average 58 | 2 50 . . 149 19 . 82 Influence Increases 1358 | 55 510 . . 368 . 64 361 Destroy 0b10 Robot/C 700 | . 320 . . 240 . . 140 Destroy 0b10 Robot/NC 95 | 55 30 . . . . . 10 Destroy Leader 138 | . 66 . . 50 . . 22 Allied During Kill 38 | . . . . 17 . . 21 Successful Hack 29 | . 18 . . . . 4 7 Select Force Hacks 30 | . 30 . . . . . . Destroy Structure 43 | . 16 . . 1 . . 26 Partial Spotted 45 | . . . . . . . 45 Lose Combat Pursuer 240 | . 30 . . 60 . 60 90 Influence Decreases 1328 | 55 408 102 . 220 148 4 391 Entered New Map 178 | . . 50 . . 97 . 31 Time Decay 799 | 55 398 52 . 140 20 4 130 Lost Part 191 | . 10 . . 60 11 . 110 Lost Ally 160 | . . . . 20 20 . 120 Squads Dispatched 11 | . 3 . . 3 . 1 4 Investigation 5 | . 2 . . 1 . 1 1 Extermination . | . . . . . . . . Reinforcement 5 | . 1 . . 1 . . 3 Assault . | . . . . . . . . Garrison 1 | . . . . 1 . . . Intercept . | . . . . . . . . Searches Triggered . | . . . . . . . . Construction Impeded 2 | . . . . . . . 2 Haulers Reinforced . | . . . . . . . . Active Scanning Responses . | . . . . . . . . Cargo Convoy Interrupts . | . . . . . . . . Stealth | -11 -10 -10 -8 -6 -6 -6 -6 --------- Run | Yrd Mat Sub Scr Fac Was Fac Ext Distress Signals 4 | . 1 . . . . . 3 Communications Jammed . | . . . . . . . . Distress Signals . | . . . . . . . . Times Spotted 70 | . 21 . . 21 5 6 17 Peak Tracking Total 9 | . 5 . . 8 4 9 6 Tactical Retreats 8 | . 2 . . 3 . 1 2 Traps | -11 -10 -10 -8 -6 -6 -6 -6 ------- Run | Yrd Mat Sub Scr Fac Was Fac Ext Traps Triggered 5 | . 1 2 . 1 . . 1 Indirectly . | . . . . . . . . Trap Hack Attempts . | . . . . . . . . Triggered . | . . . . . . . . Disarmed . | . . . . . . . . Reprogrammed . | . . . . . . . . Reused . | . . . . . . . . Traps Extracted . | . . . . . . . . Installed . | . . . . . . . . Triggered . | . . . . . . . . Machines | -11 -10 -10 -8 -6 -6 -6 -6 ---------- Run | Yrd Mat Sub Scr Fac Was Fac Ext Machines Disabled . | . . . . . . . . Max in Single Turn . | . . . . . . . . Garrison Access 1 | . . . . 1 . . . Machines Repaired . | . . . . . . . . Machines Dismantled . | . . . . . . . . Machines Sabotaged . | . . . . . . . . Overloaded Fab Kills . | . . . . . . . . Hacking | -11 -10 -10 -8 -6 -6 -6 -6 --------- Run | Yrd Mat Sub Scr Fac Was Fac Ext Machines Accessed 23 | . 8 . 6 2 . 2 5 Terminals 13 | . 7 . . . . 1 5 Fabricators . | . . . . . . . . Repair Stations . | . . . . . . . . Recycling Units 3 | . 1 . . 1 . 1 . Scanalyzers . | . . . . . . . . Garrison Access 1 | . . . . 1 . . . Total Hacks 72 | . 21 . 33 4 . 3 11 Successful 47 | . 7 . 33 2 . 2 3 Failed 25 | . 14 . . 2 . 1 8 Catastrophic 6 | . 5 . . . . . 1 Database Lockouts . | . . . . . . . . Manual 15 | . 10 . . 2 . 2 1 Terminals 31 | . 19 . . . . 1 11 Fabricators . | . . . . . . . . Repair Stations . | . . . . . . . . Recycling Units 6 | . 2 . . 2 . 2 . Scanalyzers . | . . . . . . . . Garrison Access 2 | . . . . 2 . . . Terminal Hacks 41 | . 4 . 33 . . 1 3 Record 24 | . . . 24 . . . . Robot Analysis 9 | . 1 . 8 . . . . Prototype ID Bank 2 | . 2 . . . . . . Open Door 4 | . . . . . . 1 3 Scanalyzer Index 1 | . 1 . . . . . . Proto ID Catalog 1 | . . . 1 . . . . Fabricator Hacks . | . . . . . . . . Repair Station Hacks . | . . . . . . . . Recycling Unit Hacks . | . . . . . . . . Scanalyzer . | . . . . . . . . Garrison Access Hacks 1 | . . . . 1 . . . Seal Access 1 | . . . . 1 . . . Unauthorized Hacks 5 | . 3 . . 1 . 1 . Terminals 2 | . 2 . . . . . . Skim 2 | . 2 . . . . . . Fabricators . | . . . . . . . . Repair Stations . | . . . . . . . . Recycling Units 3 | . 1 . . 1 . 1 . Tunnel 1 | . 1 . . . . . . Fedlink 2 | . . . . 1 . 1 . Scanalyzers . | . . . . . . . . Garrison Access . | . . . . . . . . Data Cores Recovered . | . . . . . . . . Used . | . . . . . . . . Hacking Detections 13 | . 8 . . . . 1 4 Full Trace Events 2 | . 1 . . . . . 1 Feedback Events . | . . . . . . . . Feedback Blocked . | . . . . . . . . Robot Schematics Acquired . | . . . . . . . . Robots Built . | . . . . . . . . Authchips . | . . . . . . . . Time . | . . . . . . . . Total Robot Build Rating . | . . . . . . . . Part Schematics Acquired . | . . . . . . . . Parts Built . | . . . . . . . . Authchips . | . . . . . . . . Time . | . . . . . . . . Total Part Build Rating . | . . . . . . . . Parts Repaired . | . . . . . . . . Time . | . . . . . . . . Parts Recycled . | . . . . . . . . Recycled Matter . | . . . . . . . . Retrieved Matter . | . . . . . . . . Retrieved Components . | . . . . . . . . Parts Scanalyzed . | . . . . . . . . Part Schematics Acquired . | . . . . . . . . Parts Damaged . | . . . . . . . . Bothacking | -11 -10 -10 -8 -6 -6 -6 -6 ------------ Run | Yrd Mat Sub Scr Fac Was Fac Ext Used RIF Installer . | . . . . . . . . Robots Hacked . | . . . . . . . . Non-combat . | . . . . . . . . Combat . | . . . . . . . . Robot Hacks Applied . | . . . . . . . . Relay Couplers Released . | . . . . . . . . Fabnet Peak Effective % . | . . . . . . . . Robots Rewired 3 | . . . . . . . 3 Allies Hacked . | . . . . . . . . Hacks Repelled . | . . . . . . . . Allies | -11 -10 -10 -8 -6 -6 -6 -6 -------- Run | Yrd Mat Sub Scr Fac Was Fac Ext Total Allies 8 | . . . 1 . 1 . 6 Largest Group 3 | . . . 1 1 1 . 3 Highest-Rated Group 82 | . . . 49 49 31 . 82 Highest-Rated Ally 49 | . . . 49 49 31 . 39 Total Orders . | . . . . . . . . Ally Attacks 55 | . . . . 12 7 . 36 Total Damage 1210 | . . . . 322 127 . 761 Kills 9 | . . . . 3 . . 6 Allies Corrupted . | . . . . . . . . Allies Melted 1 | . . . . 1 . . . Intel | -11 -10 -10 -8 -6 -6 -6 -6 ------- Run | Yrd Mat Sub Scr Fac Was Fac Ext Active Infowar (turns) 6547 | 24 1718 415 3771 358 55 . 206 Sensors 206 | . . . . . . . 206 Seismic 6341 | 24 1718 415 3771 358 55 . . Robot Analysis Total 9 | . 1 . 8 . . . . Derelict Logs Recovered . | . . . . . . . . Drone Launches . | . . . . . . . . Drone Recoveries . | . . . . . . . . Exploration | -11 -10 -10 -8 -6 -6 -6 -6 ------------- Run | Yrd Mat Sub Scr Fac Was Fac Ext Turns Passed 7018 | 262 1720 415 3771 358 83 142 267 Spaces Moved 3266 | 90 636 172 1534 149 67 323 295 Core 174 | . . . . . 58 48 68 Treads 2626 | 90 636 172 1534 149 9 . 36 Legs 3 | . . . . . . . 3 Wheels . | . . . . . . . . Hover 3 | . . . . . . . 3 Flight 460 | . . . . . . 275 185 Fastest Speed 40 | 160 160 240 240 162 50 40 40 Average Speed 195 | 160 234 240 242 165 65 41 64 Slowest Speed 400 | 160 240 240 245 255 163 50 400 Overloaded Moves . | . . . . . . . . Propulsion Burnouts . | . . . . . . . . Robots Hopped 7 | . . . . . . 3 4 Potential Cave-ins . | . . . . . . . . Cave-ins Triggered . | . . . . . . . . Exploration Rate (%) 40 | 3 90 21 92 4 74 8 34 Regions Visited 7 Branch Regions 3 Pre-discovered Areas 1 | . 1 . . . . . . Known Exits Taken 1 | . . . . . . 1 . Unknown Exits Taken 4 | 1 1 1 1 . . . . Scrap Searched 10 | . . . 10 . . . . Spaces Dug . | . . . . . . . . Terrain Destroyed 44 | . 16 . . . . . 28 Melee . | . . . . . . . . Projectile . | . . . . . . . . AOE 44 | . 16 . . . . . 28 Terrain Rammed . | . . . . . . . . Walls Destroyed . | . . . . . . . . Machines Disabled . | . . . . . . . . Actions | -11 -10 -10 -8 -6 -6 -6 -6 --------- Run | Yrd Mat Sub Scr Fac Was Fac Ext Total 3661 | 162 751 173 1603 206 83 327 356 Wait 93 | 35 18 . 15 11 5 . 9 Move 3247 | 89 635 171 1533 149 66 317 287 Hop 6 | . . . . . . 2 4 Pick Up 51 | 1 23 . 21 3 . 3 . Fast Attach 12 | 1 . . 1 . . 2 8 Attach 23 | 3 1 . 2 11 2 1 3 Detach 7 | 3 . . . 2 . . 2 Swap 11 | . 7 1 3 . . . . Drop 44 | 5 8 1 28 . . 2 . Fire 123 | 25 57 . . 25 10 . 6 Melee . | . . . . . . . . Ram 6 | . . . . . . . 6 Kick . | . . . . . . . . Crush 9 | . 2 . . 5 . . 2 Escape Stasis 9 | . . . . . . . 9 Rewire 20 | . . . . . . . 20 Trap . | . . . . . . . . Miscellaneous . | . . . . . . . . Route ------- -11/Scrapyard -10/Materials (discovered 5 exits: [*Mat x3] / [*Min] / [*Sub]) -10/Subcaves (discovered 2 exits: *Scr x2) -8/Scraptown (discovered 2 exits: *Fac x2) -6/Factory -6/Waste -6/Factory -6/Extension History --------- Turn | Location | Event 9 | -11/Scrapyard | Discovered new exit (range 3) 263 | -11/Scrapyard | Entered Materials 264 | -10/Materials | Met a group of wandering Federalists 302 | -10/Materials | Build established: Mutant 460 | -10/Materials | Discovered new exit (range 15) 764 | -10/Materials | Discovered new exit (range 3) 1523 | -10/Materials | Discovered new exit (range 8) 1930 | -10/Materials | Discovered new exit (range 10) 1959 | -10/Materials | Discovered new exit (range 16) 1983 | -10/Materials | Entered Subcaves 1984 | -10/Subcaves | Continued accompanying wandering Federalists (4) 1984 | -10/Subcaves | Approached by a straggling Scientist 2158 | -10/Subcaves | A swath of the cavern ceiling suddenly collapsed 2317 | -10/Subcaves | A swath of the cavern ceiling suddenly collapsed 2389 | -10/Subcaves | Scientist uncovered a shortcut to Scraptown 2398 | -10/Subcaves | Entered Scraptown 2781 | -8/Scraptown | Visited Symbiants 2855 | -8/Scraptown | Visited SPCMW 3529 | -8/Scraptown | Discovered new exit (range 13) 3642 | -8/Scraptown | Visited Cave Peace 3714 | -8/Scraptown | Visited Bundlers 3829 | -8/Scraptown | Visited Comm Corps 3990 | -8/Scraptown | Visited UFD Registry 3990 | -8/Scraptown | Registered with UFD as "Armorbox" 4019 | -8/Scraptown | Visited Shadow of the Wyrm 4055 | -8/Scraptown | Visited IN-MT5's Study 4216 | -8/Scraptown | Visited DA-N13 Charitable Foundation 4257 | -8/Scraptown | Found DCF Scrap (31 items) 4442 | -8/Scraptown | Visited Curators Association 4513 | -8/Scraptown | Visited Botcube Research 4536 | -8/Scraptown | Found Botcube 4632 | -8/Scraptown | Botcube activated 4650 | -8/Scraptown | Botcube completed mutation into legged form, armed with 1 cannon, 1 special weapon. 4689 | -8/Scraptown | Build established: Derelict-Mutant 4766 | -8/Scraptown | Visited Chapter 10 4881 | -8/Scraptown | Visited Derelict Rescue Squad 4913 | -8/Scraptown | Found DRS Beacon 4955 | -8/Scraptown | Visited Analyses Database 5009 | -8/Scraptown | Visited Science Guys 5465 | -8/Scraptown | Visited Junk Cannon Lab 5510 | -8/Scraptown | Found Prototype Special Weapon 5510 | -8/Scraptown | Identified Junk Cannon 5559 | -8/Scraptown | Visited Scrap Suit Storage 5606 | -8/Scraptown | Found Scrap Suit 5651 | -8/Scraptown | Visited Scrapoid Pod Storage 5820 | -8/Scraptown | Build established: Mutant 5880 | -8/Scraptown | Discovered new exit (range 3) 6169 | -8/Scraptown | Entered Factory 6169 | -6/Factory | Accompanied by 1 ally 6169 | -6/Factory | Evolved 8 slots: Power x1, Propulsion x2, Utility x3, Weapon x2 6215 | -6/Factory | Discovered new exit (range 9) 6311 | -6/Factory | Loaded intel: 8 recycling unit locations 6362 | -6/Factory | Garrison activated, responded to threat 6527 | -6/Factory | Sucked down chute 6527 | -6/Factory | Entered Waste 6528 | -6/Waste | Met a frightened Derelict 6542 | -6/Waste | EMP discharged 6542 | -6/Waste | System corruption reached 10% 6544 | -6/Waste | Spotted C-40 Crusher 6549 | -6/Waste | Build established: Derelict-Gunner 6550 | -6/Waste | Lost 3 parts (2n1w) 6558 | -6/Waste | Destroyed C-40 Crusher 6562 | -6/Waste | Spotted C-40 Crusher 6572 | -6/Waste | Crushed by Compactor (1 part destroyed, 1 dropped) 6575 | -6/Waste | Crushed by Compactor (1 part destroyed, 1 dropped) 6578 | -6/Waste | Crushed by Compactor (1 part destroyed, 2 dropped) 6581 | -6/Waste | Crushed by Compactor (1 part destroyed, 1 dropped) 6582 | -6/Waste | Released all parts (2) 6589 | -6/Waste | Spotted C-40 Crusher 6590 | -6/Waste | Spotted C-40 Crusher 6591 | -6/Waste | Spotted C-40 Crusher 6599 | -6/Waste | Spotted C-40 Crusher 6603 | -6/Waste | Discovered new exit (range 16) 6610 | -6/Waste | Entered Factory 6612 | -6/Factory | Lost 5 parts (1p2n2w) 6685 | -6/Factory | Discovered new exit (range 6) 6688 | -6/Factory | Identified exit to Extension 6724 | -6/Factory | Loaded intel: 8 recycling unit locations 6752 | -6/Factory | Entered Extension 6803 | -6/Extension | Rescued a captive Derelict 6804 | -6/Extension | Core integrity fell below 50% 6808 | -6/Extension | Rescued a captive Derelict 6816 | -6/Extension | Rescued a captive Derelict 6941 | -6/Extension | Build established: Mutant 6964 | -6/Extension | Lost 6 parts (1p3n1u1w) 6997 | -6/Extension | Core integrity fell below 20% 7002 | -6/Extension | Lost 3 allies 7007 | -6/Extension | Spotted B-75 Beast 7008 | -6/Extension | Lost 4 parts (2n1u1w) 7018 | -6/Extension | Spotted B-75 Beast 7019 | -6/Extension | Destroyed by B-75 Beast with Magnetic Acceleration Cannon Last Messages --------------- 07001_ U-05 Engineer destroyed. 07001_ Destabilizing: System interference. 07001_ Imp. Signal Interpreter temporarily disabled. 07007_ Triggered Stasis Trap. 07007_ A bubble of rippling energy engulfs the area. 07007_ Field strength at 94. 07008_ Field strength at 88. 07009_ Field strength at 82. 07010_ Field strength at 76. 07011_ Field strength at 70. 07012_ Field strength at 64. 07012_ VSS Leg destroyed. 07013_ Field strength at 37. 07014_ Field strength at 31. 07015_ Field strength at 25. 07015_ Machine disabled. 07016_ Field strength at 6. 07017_ Stasis field depleted. Map ----- +----------------------------------------------------+ | #???????# #???# ##?????????????????????????????? | | ###???????# #???# T#?????????????????????????????? | | #?????????# #?### ##?????????????????????????????? | | #?????????# #?# ########???????????????????????? | | #?????????#%#?# #???????????????????????? | | #?????????# #?# #???????????????????????? | | #????????## ###% #???????????????????????? | | #????????# ##% =#???????????????????????? | | #????##### %% % !!#???????????????????????? | | ?????# % ###########%#???????????????????????? | | ?????###T#####?????????#%#???????????????????????? | | ???????###?????????????#%#???????????????????????? | | ???????????????????????#%#???????????????????????? | | ???????????????????????# #???????????????????????? | | ???????????????????????# #???????????????????????? | | ???????????????????????# #???????????????????????? | | ???????????????????????# #???????????????????????? | | ?????????????????????### #???????????????????????? | | ???????????????????###T# #???????????????????????? | | ???????????????????# %#???????????????????????? | | ???????????????????##### #???????????????????????? | | ???????????????????????# #???????????????????????? | | ???????????????????????#%#???????????????????????? | | ???????????????????????# #???????????????????????? | | ?????????????????????###%### ## ##???????????????? | | ?????????????????????#" @" "" ?????????????? | | ?????????????????????#% % "w"????????????? | | ?????????????????????#% % % R ???????????? | | ?????????????????????# ???????????? | | ?????????????????????# % ???????????? | | ????????????????????? ????????????? | | ???????????????????? ???????????? | | ??????????????????? ??????????? | | ?????????????????? BB ???????????? | | ????????????????? BB k u ???????????? | | ????????????????###### BB ????????????? | | ?????????????????????# BB ????????????? | | ?????????????????????# ??????????????? | | ?????????????????????# ????????????????? | | ?????????????????????# ???????????????????? | | ???????????????????????####T?????????????????????? | | ?????????????????????????????????????????????????? | | ?????????????????????????????????????????????????? | | | | | | | | | | | | | | | +----------------------------------------------------+ Best States ------------- Heat Dissipation 37 Energy Generation 18 Energy Capacity 310 Matter Stores 300 Matter Capacity 300 Sight Range 16 Robot Scan Range 16 Terrain Scan Density 10 Armor Coverage 600 Evasion (%) 62 Targeting Accuracy 8 Recoil Reduction 4 Item Schematics ----------------- None Robot Schematics ------------------ None Fabricated ------------ Nothing Repaired ---------- Nothing Alien Tech Used ----------------- None Achievements -------------- None Challenges ------------ None Game ------ Seed TerrainCompactArmor Manual? 0 Play Time 00:50:41 Cumulative 10.2 hours Start 2025.08.03 @ 01:34:21 End 2025.08.03 @ 02:54:10 Sessions 1 Manual Loads 0 Difficulty Rogue Special Mode None Game No. 5 Rogue 5 Adventurer 0 Explorer 0 Win Type - Total 0 Types 0/0/0/0/0/0/0/0/0/0 Lore% 21 Gallery% 12 Achievement% 72 Wizard Run 0 Options --------- Layout 2 ASCII 0 Keyboard 1 Movement Vi Keybinds 0 Fullscreen 1 Font 28/SwanstonBold Map View 50x52 Zoom Use 0% Tactical HUD 1 Map Filters NONE Filters NONE Steam 1 RUN: c363ae49-d8e1-4504-a08f-c9975c48e856